[Event "Polofinale MCR junioru 2023"]
[Site "Czech Republic"]
[Date "2023.11.13"]
[Round "3.24"]
[White "Mrazek, Adam"]
[Black "Lieber, Lukas"]
[Result "1-0"]
[TimeControl "90 min per 40 moves + 15 min + 30 sec / move from move 1"]
[WhiteFideId "23725010"]
[BlackFideId "23700688"]
[WhiteElo "1643"]
[BlackElo "1959"]

1. c4 {[%clk 01:30:42]} {[%emt 00:00:17]} e6 {[%clk 01:30:49]} {[%emt
00:00:10]} 2. Nf3 {[%clk 01:30:41]} {[%emt 00:00:32]} Nf6 {[%clk 01:30:57]}
{[%emt 00:00:21]} 3. g3 {[%clk 01:30:57]} {[%emt 00:00:16]} d5 {[%clk
01:31:06]} {[%emt 00:00:19]} 4. Bg2 {[%clk 01:31:13]} {[%emt 00:00:15]} c5
{[%clk 01:30:36]} {[%emt 00:00:59]} 5. O-O {[%clk 01:30:29]} {[%emt 00:01:14]}
Nc6 {[%clk 01:30:06]} {[%emt 00:00:58]} 6. cxd5 {[%clk 01:25:27]} {[%emt
00:05:35]} exd5 {[%clk 01:29:57]} {[%emt 00:00:37]} 7. d4 {[%clk 01:21:57]}
{[%emt 00:04:02]} Be7 {[%clk 01:29:58]} {[%emt 00:00:27]} 8. b3 {[%clk
01:05:51]} {[%emt 00:16:38]} Bg4 {[%clk 01:28:15]} {[%emt 00:02:12]} 9. Bb2
{[%clk 01:04:55]} {[%emt 00:01:28]} O-O {[%clk 01:27:35]} {[%emt 00:01:09]} 10.
Ne5 {[%clk 00:37:25]} {[%emt 00:28:01]} Bh5 {[%clk 01:25:33]} {[%emt 00:02:31]}
11. Nxc6 {[%clk 00:36:46]} {[%emt 00:01:10]} bxc6 {[%clk 01:26:00]} {[%emt
00:00:02]} 12. Nd2 {[%clk 00:36:38]} {[%emt 00:00:39]} cxd4 {[%clk 01:25:50]}
{[%emt 00:00:40]} 13. Bxd4 {[%clk 00:36:51]} {[%emt 00:00:16]} c5 {[%clk
01:26:19]} {[%emt 00:00:01]} 14. Bb2 {[%clk 00:35:44]} {[%emt 00:01:38]} Qd7
{[%clk 01:25:18]} {[%emt 00:01:30]} 15. Rc1 {[%clk 00:33:27]} {[%emt 00:02:48]}
Bg6 {[%clk 01:24:17]} {[%emt 00:01:30]} 16. Nf3 {[%clk 00:33:04]} {[%emt
00:00:54]} Rac8 {[%clk 01:22:21]} {[%emt 00:02:23]} 17. Ne5 {[%clk 00:32:24]}
{[%emt 00:01:11]} Qc7 {[%clk 01:22:03]} {[%emt 00:00:47]} 18. Nxg6 {[%clk
00:30:28]} {[%emt 00:02:28]} hxg6 {[%clk 01:22:30]} {[%emt 00:00:02]} 19. Bxf6
{[%clk 00:24:33]} {[%emt 00:06:26]} Bxf6 {[%clk 01:21:26]} {[%emt 00:01:34]} 20.
Qxd5 {[%clk 00:24:51]} {[%emt 00:00:12]} Rfd8 {[%clk 01:20:23]} {[%emt
00:01:32]} 21. Qc4 {[%clk 00:20:33]} {[%emt 00:04:48]} Qa5 {[%clk 01:17:45]}
{[%emt 00:03:07]} 22. Bd5 {[%clk 00:16:20]} {[%emt 00:04:45]} Rf8 {[%clk
01:16:34]} {[%emt 00:01:40]} 23. a4 {[%clk 00:16:09]} {[%emt 00:00:41]} Bg5
{[%clk 01:14:47]} {[%emt 00:02:17]} 24. Rc3 {[%clk 00:08:13]} {[%emt 00:08:27]}
Rcd8 {[%clk 01:14:06]} {[%emt 00:01:10]} 25. Rf3 {[%clk 00:07:20]} {[%emt
00:01:23]} Rd7 {[%clk 01:12:43]} {[%emt 00:01:50]} 26. h4 {[%clk 00:05:28]}
{[%emt 00:02:26]} Bf6 {[%clk 01:12:27]} {[%emt 00:00:45]} 27. e4 {[%clk
00:03:52]} {[%emt 00:02:07]} Rb8 {[%clk 01:11:30]} {[%emt 00:01:26]} 28. Rc1
{[%clk 00:02:21]} {[%emt 00:02:03]} Rc7 {[%clk 01:10:54]} {[%emt 00:01:04]} 29.
Kg2 {[%clk 00:00:38]} {[%emt 00:02:14]} Rb4 {[%clk 01:10:39]} {[%emt 00:00:45]}
30. Qe2 {[%clk 00:00:59]} {[%emt 00:00:10]} Be5 {[%clk 01:09:23]} {[%emt
00:01:46]} 31. Qe3 {[%clk 00:00:45]} {[%emt 00:00:44]} Qb6 {[%clk 01:06:05]}
{[%emt 00:03:46]} 32. Qg5 {[%clk 00:00:48]} {[%emt 00:00:30]} Qd6 {[%clk
01:03:56]} {[%emt 00:02:38]} 33. h5 {[%clk 00:00:42]} {[%emt 00:00:36]} gxh5
{[%clk 01:03:41]} {[%emt 00:00:44]} 34. Qxh5 {[%clk 00:00:35]} {[%emt
00:00:37]} g6 {[%clk 01:03:28]} {[%emt 00:00:43]} 35. Qh4 {[%clk 00:00:34]}
{[%emt 00:00:31]} Bg7 {[%clk 01:02:23]} {[%emt 00:01:34]} 36. Rd1 {[%clk
00:00:36]} {[%emt 00:00:29]} Rd4 {[%clk 01:00:52]} {[%emt 00:02:01]} 37. Rc1
{[%clk 00:00:35]} {[%emt 00:00:32]} a5 {[%clk 00:59:35]} {[%emt 00:01:47]} 38.
Rh1 {[%clk 00:00:43]} {[%emt 00:00:22]} Rd7 {[%clk 00:56:59]} {[%emt 00:03:06]}
39. Qg5 {[%clk 00:00:34]} {[%emt 00:00:38]} Rxd5 {[%clk 00:56:12]} {[%emt
00:01:17]} 40. exd5 {[%clk 00:00:54]} {[%emt 00:00:10]} Qxd5 {[%clk 00:56:39]}
{[%emt 00:00:02]} 41. Qxd5 {[%clk 00:00:40]} {[%emt 00:00:46]} Rxd5 {[%clk
00:57:03]} {[%emt 00:00:05]} 42. Re1 {[%clk 00:09:11]} {[%emt 00:07:30]} Kf8
{[%clk 01:08:16]} {[%emt 00:04:47]} 43. Re6 {[%clk 00:05:32]} {[%emt 00:04:10]}
Bh6 {[%clk 00:55:50]} {[%emt 00:12:55]} 44. Rxg6 {[%clk 00:04:18]} {[%emt
00:01:46]} Bd2 {[%clk 00:55:47]} {[%emt 00:00:32]} 45. Rgf6 {[%clk 00:04:16]}
{[%emt 00:00:32]} Rd7 {[%clk 00:56:13]} {[%emt 00:00:03]} 46. R6f5 {[%clk
00:02:52]} {[%emt 00:01:55]} Bb4 {[%clk 00:56:36]} {[%emt 00:00:07]} 47. Kh3
{[%clk 00:03:05]} {[%emt 00:00:18]} Kg8 {[%clk 00:53:15]} {[%emt 00:03:50]} 48.
Kg4 {[%clk 00:03:05]} {[%emt 00:00:31]} Rc7 {[%clk 00:52:01]} {[%emt 00:01:43]}
49. R5f4 {[%clk 00:02:34]} {[%emt 00:01:02]} Bd2 {[%clk 00:51:11]} {[%emt
00:01:18]} 50. Re4 {[%clk 00:02:23]} {[%emt 00:00:42]} Kg7 {[%clk 00:49:52]}
{[%emt 00:01:49]} 51. Rd3 {[%clk 00:02:23]} {[%emt 00:00:30]} Bb4 {[%clk
00:49:15]} {[%emt 00:01:05]} 52. Kf5 {[%clk 00:02:18]} {[%emt 00:00:38]} Rc6
{[%clk 00:48:32]} {[%emt 00:01:11]} 53. Rg4+ {[%clk 00:02:11]} {[%emt
00:00:38]} Kf8 {[%clk 00:48:24]} {[%emt 00:00:36]} 54. Re4 {[%clk 00:00:59]}
{[%emt 00:01:43]} Kg7 {[%clk 00:48:08]} {[%emt 00:00:45]} 55. Kf4 {[%clk
00:00:39]} {[%emt 00:00:51]} Rf6+ {[%clk 00:47:43]} {[%emt 00:00:55]} 56. Ke3
{[%clk 00:01:06]} {[%emt 00:00:03]} Be1 {[%clk 00:47:08]} {[%emt 00:01:05]} 57.
Rg4+ {[%clk 00:00:47]} {[%emt 00:00:50]} Kf8 {[%clk 00:46:57]} {[%emt
00:00:39]} 58. f3 {[%clk 00:00:36]} {[%emt 00:00:42]} Ke7 {[%clk 00:45:53]}
{[%emt 00:01:34]} 59. Re4+ {[%clk 00:00:42]} {[%emt 00:00:24]} Kf8 {[%clk
00:45:25]} {[%emt 00:00:58]} 60. g4 {[%clk 00:00:40]} {[%emt 00:00:33]} Rh6
{[%clk 00:43:32]} {[%emt 00:02:22]} 61. Rd5 {[%clk 00:00:44]} {[%emt 00:00:26]}
Rh2 {[%clk 00:42:30]} {[%emt 00:01:31]} 62. Kf4 {[%clk 00:00:51]} {[%emt
00:00:24]} Bf2 {[%clk 00:41:52]} {[%emt 00:01:07]} 63. Kf5 {[%clk 00:00:40]}
{[%emt 00:00:42]} Rh3 {[%clk 00:41:45]} {[%emt 00:00:36]} 64. Rd3 {[%clk
00:00:36]} {[%emt 00:00:35]} Bd4 {[%clk 00:41:15]} {[%emt 00:00:59]} 65. Re2
{[%clk 00:00:35]} {[%emt 00:00:32]} Rh6 {[%clk 00:40:51]} {[%emt 00:00:54]} 66.
f4 {[%clk 00:00:35]} {[%emt 00:00:30]} Rf6+ {[%clk 00:40:32]} {[%emt 00:00:48]}
67. Kg5 {[%clk 00:00:41]} {[%emt 00:00:25]} Rd6 {[%clk 00:40:05]} {[%emt
00:00:56]} 68. Kh5 {[%clk 00:00:33]} {[%emt 00:00:39]} Kg7 {[%clk 00:38:17]}
{[%emt 00:02:18]} 69. g5 {[%clk 00:00:42]} {[%emt 00:00:22]} Rd5 {[%clk
00:38:09]} {[%emt 00:00:37]} 70. Re7 {[%clk 00:00:34]} {[%emt 00:00:39]} Rf5
{[%clk 00:37:46]} {[%emt 00:00:53]} 71. Kg4 {[%clk 00:00:51]} {[%emt 00:00:12]}
Kg6 {[%clk 00:37:05]} {[%emt 00:01:11]} 72. Rd7 {[%clk 00:00:45]} {[%emt
00:00:36]} f6 {[%clk 00:35:08]} {[%emt 00:02:25]} 73. Rd6 {[%clk 00:00:43]}
{[%emt 00:00:33]} Bb2 {[%clk 00:29:25]} {[%emt 00:06:11]} 74. Rh3 {[%clk
00:00:52]} {[%emt 00:00:23]} Rxf4+ {[%clk 00:28:43]} {[%emt 00:01:12]} 75. Kxf4
{[%clk 00:00:52]} {[%emt 00:00:30]} Be5+ {[%clk 00:29:11]} {[%emt 00:00:02]} 76.
Ke4 {[%clk 00:01:11]} {[%emt 00:00:10]} Bxd6 {[%clk 00:29:15]} {[%emt
00:00:26]} 77. gxf6 {[%clk 00:01:23]} {[%emt 00:00:19]} Kxf6 {[%clk 00:23:40]}
{[%emt 00:06:04]} 78. Rh6+ {[%clk 00:01:37]} {[%emt 00:00:16]} Ke7 {[%clk
00:23:22]} {[%emt 00:00:48]} 79. Kd5 {[%clk 00:01:52]} {[%emt 00:00:15]} Bf4
{[%clk 00:23:51]} 80. Rh7+ {[%clk 00:02:11]} {[%emt 00:00:12]} Kf6 {[%clk
00:22:04]} {[%emt 00:02:16]} 81. Kxc5 {[%clk 00:02:25]} {[%emt 00:00:17]} Kg6
{[%clk 00:21:22]} {[%emt 00:01:11]} 82. Rd7 {[%clk 00:02:08]} {[%emt 00:00:47]}
Kf6 {[%clk 00:19:18]} {[%emt 00:02:33]} 83. Kb5 {[%clk 00:02:16]} {[%emt
00:00:23]} Ke6 {[%clk 00:19:13]} {[%emt 00:00:35]} 84. Ra7 {[%clk 00:02:13]}
{[%emt 00:00:33]} Bd2 {[%clk 00:18:12]} {[%emt 00:01:31]} 85. Rxa5 {[%clk
00:02:33]} {[%emt 00:00:11]} Bxa5 {[%clk 00:16:46]} {[%emt 00:01:56]} 86. Kxa5
{[%clk 00:02:55]} {[%emt 00:00:08]} Kd7 {[%clk 00:17:13]} {[%emt 00:00:04]} 87.
Kb6 {[%clk 00:03:10]} {[%emt 00:00:15]} Kc8 {[%clk 00:17:42]} {[%emt 00:00:01]}
88. Ka7 {[%clk 00:03:30]} {[%emt 00:00:10]} 1-0

[Event "Polofinale MCR junioru 2023"]
[Site "Czech Republic"]
[Date "2023.11.13"]
[Round "3.25"]
[White "Meca, Viktor"]
[Black "Benes, Jachym"]
[Result "0-1"]
[TimeControl "90 min per 40 moves + 15 min + 30 sec / move from move 1"]
[WhiteFideId "23739800"]
[BlackFideId "23710870"]
[WhiteElo "1642"]
[BlackElo "1950"]

1. e4 {[%clk 01:30:59]} e6 {[%clk 01:28:50]} {[%emt 00:02:10]} 2. d4 {[%clk
01:31:15]} {[%emt 00:00:13]} d5 {[%clk 01:29:15]} {[%emt 00:00:05]} 3. e5
{[%clk 01:31:35]} {[%emt 00:00:11]} c5 {[%clk 01:29:40]} {[%emt 00:00:05]} 4.
c3 {[%clk 01:31:58]} {[%emt 00:00:07]} Nc6 {[%clk 01:30:07]} {[%emt 00:00:03]}
5. Nf3 {[%clk 01:32:19]} {[%emt 00:00:09]} Qb6 {[%clk 01:30:34]} {[%emt
00:00:04]} 6. Bd3 {[%clk 01:32:36]} {[%emt 00:00:13]} Bd7 {[%clk 01:30:59]}
{[%emt 00:00:05]} 7. dxc5 {[%clk 01:32:53]} {[%emt 00:00:12]} Bxc5 {[%clk
01:31:21]} {[%emt 00:00:07]} 8. O-O {[%clk 01:33:14]} {[%emt 00:00:09]} a5
{[%clk 01:30:15]} {[%emt 00:01:36]} 9. Nbd2 {[%clk 01:33:24]} {[%emt 00:00:21]}
f6 {[%clk 01:10:01]} {[%emt 00:20:43]} 10. Qe2 {[%clk 01:22:52]} {[%emt
00:11:02]} fxe5 {[%clk 01:08:03]} {[%emt 00:02:28]} 11. Nxe5 {[%clk 01:23:12]}
{[%emt 00:00:10]} Nxe5 {[%clk 01:08:27]} {[%emt 00:00:06]} 12. Qxe5 {[%clk
01:23:34]} {[%emt 00:00:08]} Nf6 {[%clk 01:08:54]} {[%emt 00:00:03]} 13. Nf3
{[%clk 01:21:44]} {[%emt 00:02:19]} O-O {[%clk 01:08:32]} {[%emt 00:00:53]} 14.
Be3 {[%clk 01:19:12]} {[%emt 00:03:02]} Rae8 {[%clk 00:38:18]} {[%emt
00:30:44]} 15. Bxc5 {[%clk 01:05:52]} {[%emt 00:13:51]} Qxc5 {[%clk 00:37:50]}
{[%emt 00:00:58]} 16. Qd4 {[%clk 01:06:09]} {[%emt 00:00:12]} Qd6 {[%clk
00:35:19]} {[%emt 00:03:01]} 17. Ne5 {[%clk 01:04:23]} {[%emt 00:02:16]} Bc6
{[%clk 00:26:12]} {[%emt 00:09:37]} 18. f4 {[%clk 00:57:26]} {[%emt 00:07:27]}
Nd7 {[%clk 00:24:31]} {[%emt 00:02:11]} 19. Rae1 {[%clk 00:54:40]} {[%emt
00:03:15]} Nxe5 {[%clk 00:12:37]} {[%emt 00:12:24]} 20. Rxe5 {[%clk 00:53:44]}
{[%emt 00:01:26]} Rf6 {[%clk 00:11:57]} {[%emt 00:01:10]} 21. Rfe1 {[%clk
00:41:07]} {[%emt 00:13:07]} Rc8 {[%clk 00:11:11]} {[%emt 00:01:17]} 22. f5
{[%clk 00:35:48]} {[%emt 00:05:49]} exf5 {[%clk 00:10:59]} {[%emt 00:00:41]} 23.
Bxf5 {[%clk 00:35:50]} {[%emt 00:00:28]} Rd8 {[%clk 00:10:10]} {[%emt
00:01:20]} 24. Bc2 {[%clk 00:33:03]} {[%emt 00:03:17]} Rdf8 {[%clk 00:05:45]}
{[%emt 00:04:55]} 25. Bb3 {[%clk 00:31:40]} {[%emt 00:01:52]} Rf5 {[%clk
00:03:54]} {[%emt 00:02:21]} 26. Re7 {[%clk 00:26:49]} {[%emt 00:05:21]} Qxe7
{[%clk 00:03:53]} {[%emt 00:00:32]} 0-1

[Event "Polofinale MCR junioru 2023"]
[Site "Czech Republic"]
[Date "2023.11.13"]
[Round "3.26"]
[White "Svacina, Tobias"]
[Black "Siles, Jan"]
[Result "1-0"]
[TimeControl "90 min per 40 moves + 15 min + 30 sec / move from move 1"]
[WhiteFideId "385859"]
[BlackFideId "23715405"]
[WhiteElo "1941"]
[BlackElo "1829"]

1. e4 {[%clk 01:29:30]} {[%emt 00:01:29]} c5 {[%clk 01:30:52]} {[%emt
00:00:07]} 2. Nf3 {[%clk 01:28:53]} {[%emt 00:01:08]} e6 {[%clk 01:31:07]}
{[%emt 00:00:16]} 3. d4 {[%clk 01:27:50]} {[%emt 00:01:32]} cxd4 {[%clk
01:31:30]} {[%emt 00:00:07]} 4. Nxd4 {[%clk 01:27:38]} {[%emt 00:00:41]} Nf6
{[%clk 01:31:42]} {[%emt 00:00:17]} 5. Nc3 {[%clk 01:26:37]} {[%emt 00:01:32]}
Bb4 {[%clk 01:31:39]} {[%emt 00:00:32]} 6. Qf3 {[%clk 01:15:16]} {[%emt
00:11:52]} Qb6 {[%clk 01:18:15]} {[%emt 00:13:54]} 7. Nb3 {[%clk 01:14:16]}
{[%emt 00:01:30]} Qc6 {[%clk 01:02:43]} {[%emt 00:16:01]} 8. Bd3 {[%clk
01:13:04]} {[%emt 00:01:42]} d5 {[%clk 00:58:04]} {[%emt 00:05:09]} 9. O-O
{[%clk 01:02:38]} {[%emt 00:10:56]} Bxc3 {[%clk 00:54:02]} {[%emt 00:04:32]} 10.
Qe2 {[%clk 01:02:01]} {[%emt 00:01:07]} O-O {[%clk 00:50:31]} {[%emt 00:04:00]}
11. exd5 {[%clk 01:00:32]} {[%emt 00:02:00]} exd5 {[%clk 00:48:46]} {[%emt
00:02:15]} 12. bxc3 {[%clk 00:59:20]} {[%emt 00:01:41]} Re8 {[%clk 00:41:42]}
{[%emt 00:07:34]} 13. Qf3 {[%clk 00:56:39]} {[%emt 00:03:12]} Nbd7 {[%clk
00:35:10]} {[%emt 00:07:02]} 14. Nd4 {[%clk 00:48:48]} {[%emt 00:08:21]} Ne5
{[%clk 00:33:09]} {[%emt 00:02:32]} 15. Qg3 {[%clk 00:48:33]} {[%emt 00:00:45]}
Qc5 {[%clk 00:27:24]} {[%emt 00:06:16]} 16. Bd2 {[%clk 00:23:05]} {[%emt
00:25:58]} Ne4 {[%clk 00:25:25]} {[%emt 00:02:28]} 17. Bxe4 {[%clk 00:22:29]}
{[%emt 00:01:06]} dxe4 {[%clk 00:25:46]} {[%emt 00:00:10]} 18. Rae1 {[%clk
00:22:22]} {[%emt 00:00:37]} Ng6 {[%clk 00:22:58]} {[%emt 00:03:18]} 19. f3
{[%clk 00:21:22]} {[%emt 00:01:30]} Be6 {[%clk 00:15:54]} {[%emt 00:07:34]} 20.
fxe4 {[%clk 00:15:28]} {[%emt 00:06:24]} Bxa2 {[%clk 00:14:06]} {[%emt
00:02:18]} 21. Kh1 {[%clk 00:15:52]} {[%emt 00:00:06]} Rad8 {[%clk 00:12:46]}
{[%emt 00:01:50]} 22. Rf5 {[%clk 00:11:37]} {[%emt 00:04:45]} Qd6 {[%clk
00:11:24]} {[%emt 00:01:52]} 23. e5 {[%clk 00:10:36]} {[%emt 00:01:32]} Qd7
{[%clk 00:11:07]} {[%emt 00:00:47]} 24. h4 {[%clk 00:07:42]} {[%emt 00:03:24]}
Be6 {[%clk 00:09:32]} {[%emt 00:02:05]} 25. Rf2 {[%clk 00:07:04]} {[%emt
00:01:07]} Ne7 {[%clk 00:04:01]} {[%emt 00:06:01]} 26. Bh6 {[%clk 00:04:43]}
{[%emt 00:02:50]} Ng6 {[%clk 00:01:28]} {[%emt 00:03:04]} 27. Bg5 {[%clk
00:04:47]} {[%emt 00:00:25]} Rc8 {[%clk 00:01:35]} {[%emt 00:00:24]} 28. h5
{[%clk 00:04:17]} {[%emt 00:01:00]} Ne7 {[%clk 00:01:18]} {[%emt 00:00:47]} 29.
Bf6 {[%clk 00:03:57]} {[%emt 00:00:49]} Ng6 {[%clk 00:00:32]} {[%emt 00:01:16]}
30. hxg6 {[%clk 00:02:36]} {[%emt 00:01:51]} hxg6 {[%clk 00:00:58]} {[%emt
00:00:05]} 31. Bg5 {[%clk 00:02:18]} {[%emt 00:00:48]} Bd5 {[%clk 00:01:00]}
{[%emt 00:00:28]} 32. Re3 {[%clk 00:01:33]} {[%emt 00:01:14]} a5 {[%clk
00:00:51]} {[%emt 00:00:39]} 33. Qh4 {[%clk 00:01:05]} {[%emt 00:00:58]} f6
{[%clk 00:00:36]} {[%emt 00:00:45]} 34. exf6 {[%clk 00:00:54]} {[%emt
00:00:41]} Rxe3 {[%clk 00:00:48]} {[%emt 00:00:18]} 35. Bxe3 {[%clk 00:01:19]}
{[%emt 00:00:05]} Rxc3 {[%clk 00:01:06]} {[%emt 00:00:12]} 36. fxg7 {[%clk
00:01:14]} {[%emt 00:00:35]} Kxg7 {[%clk 00:00:40]} {[%emt 00:00:56]} 37. Ne6+
{[%clk 00:01:17]} {[%emt 00:00:27]} Qxe6 {[%clk 00:00:33]} {[%emt 00:00:37]} 38.
Bd4+ {[%clk 00:01:39]} {[%emt 00:00:07]} 1-0

[Event "Polofinale MCR junioru 2023"]
[Site "Czech Republic"]
[Date "2023.11.13"]
[Round "3.27"]
[White "Pressler, Tobias"]
[Black "Svadlenka, Dominik"]
[Result "1-0"]
[TimeControl "90 min per 40 moves + 15 min + 30 sec / move from move 1"]
[WhiteFideId "23715359"]
[BlackFideId "23716258"]
[WhiteElo "1937"]
[BlackElo "1725"]

1. d4 {[%clk 01:30:40]} {[%emt 00:00:19]} d5 {[%clk 01:30:56]} {[%emt
00:00:04]} 2. e3 {[%clk 01:31:06]} {[%emt 00:00:04]} Nf6 {[%clk 01:31:23]}
{[%emt 00:00:04]} 3. Bd3 {[%clk 01:31:24]} {[%emt 00:00:12]} e6 {[%clk
01:31:40]} {[%emt 00:00:13]} 4. f4 {[%clk 01:31:21]} {[%emt 00:00:33]} c5
{[%clk 01:31:48]} {[%emt 00:00:22]} 5. c3 {[%clk 01:31:37]} {[%emt 00:00:13]}
Nc6 {[%clk 01:32:03]} {[%emt 00:00:16]} 6. Nd2 {[%clk 01:31:36]} {[%emt
00:00:31]} Be7 {[%clk 01:32:00]} {[%emt 00:00:33]} 7. Ngf3 {[%clk 01:32:00]}
{[%emt 00:00:06]} Qc7 {[%clk 01:31:20]} {[%emt 00:01:10]} 8. Ne5 {[%clk
01:31:14]} {[%emt 00:01:17]} b6 {[%clk 01:28:20]} {[%emt 00:03:30]} 9. O-O
{[%clk 01:31:30]} {[%emt 00:00:13]} Bb7 {[%clk 01:27:06]} {[%emt 00:01:45]} 10.
Qf3 {[%clk 01:31:06]} {[%emt 00:00:54]} a5 {[%clk 01:26:34]} {[%emt 00:01:03]}
11. Rf2 {[%clk 01:06:38]} {[%emt 00:24:57]} Ba6 {[%clk 01:24:33]} {[%emt
00:02:31]} 12. Bb1 {[%clk 01:06:59]} {[%emt 00:00:10]} cxd4 {[%clk 01:20:53]}
{[%emt 00:04:10]} 13. exd4 {[%clk 01:06:39]} {[%emt 00:00:49]} Nxd4 {[%clk
01:20:51]} {[%emt 00:00:32]} 14. cxd4 {[%clk 00:59:32]} {[%emt 00:07:37]} Qxc1+
{[%clk 01:21:09]} {[%emt 00:00:12]} 15. Nf1 {[%clk 00:59:50]} {[%emt 00:00:13]}
O-O {[%clk 00:54:59]} {[%emt 00:26:40]} 16. Bxh7+ {[%clk 00:59:42]} {[%emt
00:00:38]} 1-0

[Event "Polofinale MCR junioru 2023"]
[Site "Czech Republic"]
[Date "2023.11.13"]
[Round "3.28"]
[White "Hrbek, Jachym"]
[Black "Pistej, Tomas"]
[Result "1-0"]
[TimeControl "90 min per 40 moves + 15 min + 30 sec / move from move 1"]
[WhiteFideId "23709138"]
[BlackFideId "23750740"]
[WhiteElo "1913"]
[BlackElo "1502"]

1. e4 {[%clk 01:30:44]} {[%emt 00:00:14]} e5 {[%clk 01:30:54]} {[%emt
00:00:07]} 2. Nf3 {[%clk 01:31:04]} {[%emt 00:00:10]} Nc6 {[%clk 01:31:08]}
{[%emt 00:00:17]} 3. Bc4 {[%clk 01:31:12]} {[%emt 00:00:21]} Nf6 {[%clk
01:31:11]} {[%emt 00:00:27]} 4. d3 {[%clk 01:31:26]} {[%emt 00:00:16]} Bc5
{[%clk 01:30:52]} {[%emt 00:00:49]} 5. c3 {[%clk 01:31:37]} {[%emt 00:00:19]}
d6 {[%clk 01:30:37]} {[%emt 00:00:45]} 6. Nbd2 {[%clk 01:31:14]} {[%emt
00:00:52]} Bd7 {[%clk 01:29:05]} {[%emt 00:02:02]} 7. Bb3 {[%clk 01:27:59]}
{[%emt 00:03:45]} h6 {[%clk 01:26:17]} {[%emt 00:03:18]} 8. Nf1 {[%clk
01:27:46]} {[%emt 00:00:42]} Qe7 {[%clk 01:24:30]} {[%emt 00:02:18]} 9. Ne3
{[%clk 01:26:27]} {[%emt 00:01:49]} O-O {[%clk 01:16:36]} {[%emt 00:08:24]} 10.
h3 {[%clk 01:26:16]} {[%emt 00:00:40]} a6 {[%clk 01:15:50]} {[%emt 00:01:16]}
11. g4 {[%clk 01:25:25]} {[%emt 00:01:20]} Bxe3 {[%clk 01:12:53]} {[%emt
00:03:28]} 12. Bxe3 {[%clk 01:25:27]} {[%emt 00:00:28]} Nxg4 {[%clk 01:05:12]}
{[%emt 00:08:12]} 13. hxg4 {[%clk 01:25:07]} {[%emt 00:00:50]} Bxg4 {[%clk
01:05:30]} {[%emt 00:00:12]} 14. Rg1 {[%clk 01:18:16]} {[%emt 00:07:20]} h5
{[%clk 01:02:11]} {[%emt 00:03:50]} 15. Qd2 {[%clk 01:15:57]} {[%emt 00:02:50]}
Bxf3 {[%clk 00:56:54]} {[%emt 00:05:47]} 16. Bg5 {[%clk 01:16:12]} {[%emt
00:00:14]} Qd7 {[%clk 00:51:23]} {[%emt 00:06:01]} 17. Bf6 {[%clk 01:16:21]}
{[%emt 00:00:21]} Bg4 {[%clk 00:45:27]} {[%emt 00:06:27]} 18. Qg5 {[%clk
01:16:37]} {[%emt 00:00:14]} g6 {[%clk 00:45:29]} {[%emt 00:00:29]} 19. Qxg6#
{[%emt 00:00:09]} 1-0